[Event "Titled Tuesday Blitz January 31 Early 2023"]
[White "Sukandar, Irine Kharisma"]
[Black "Preotu, Razvan"]
[WhiteFideId "7101937"]
[BlackFideId "2613280"]
[WhiteElo "2390"]
[BlackElo "2475"]
[Result "0-1"]
[Round "09"]
[TimeControl "180+2"]
[Date "2023.01.31"]
[WhiteClock "0:00:02"]
[BlackClock "0:00:08"]

1. e4 {[%clk 0:02:53]}  c5 {[%clk 0:02:56]} 2. Nc3 {[%clk 0:02:52]}  d6 {[%clk 0:02:56]} 3. f4 {[%clk 0:02:50]}  g6 {[%clk 0:02:55]} 4. Nf3 {[%clk 0:02:50]}  Bg7 {[%clk 0:02:55]} 5. Bc4 {[%clk 0:02:47]}  Nc6 {[%clk 0:02:54]} 6. O-O {[%clk 0:02:43]}  e6 {[%clk 0:02:53]} 7. d3 {[%clk 0:02:30]}  Nge7 {[%clk 0:02:43]} 8. Qe1 {[%clk 0:02:30]}  O-O {[%clk 0:02:42]} 9. Qh4 {[%clk 0:02:30]}  d5 {[%clk 0:02:25]} 10. Bb3 {[%clk 0:02:13]}  Nd4 {[%clk 0:02:15]} 11. f5 {[%clk 0:02:09]}  gxf5 {[%clk 0:02:01]} 12. exd5 {[%clk 0:01:50]}  Nxb3 {[%clk 0:01:46]} 13. axb3 {[%clk 0:01:38]}  Nxd5 {[%clk 0:01:44]} 14. Bg5 {[%clk 0:01:38]}  f6 {[%clk 0:01:36]} 15. Bh6 {[%clk 0:01:36]}  Nb4 {[%clk 0:01:24]} 16. Bxg7 {[%clk 0:00:52]}  Kxg7 {[%clk 0:01:25]} 17. Rf2 {[%clk 0:00:48]}  e5 {[%clk 0:01:05]} 18. Qg3+ {[%clk 0:00:46]}  Kh8 {[%clk 0:01:04]} 19. Nh4 {[%clk 0:00:46]}  f4 {[%clk 0:01:02]} 20. Qf3 {[%clk 0:00:39]}  Rg8 {[%clk 0:00:58]} 21. Qe4 {[%clk 0:00:33]}  Bd7 {[%clk 0:00:43]} 22. Re1 {[%clk 0:00:27]}  Bc6 {[%clk 0:00:43]} 23. Qf5 {[%clk 0:00:27]}  Rg5 {[%clk 0:00:41]} 24. Qe6 {[%clk 0:00:22]}  Qf8 {[%clk 0:00:24]} 25. Ne4 {[%clk 0:00:21]}  Rh5 {[%clk 0:00:23]} 26. Nf3 {[%clk 0:00:13]}  Rh6 {[%clk 0:00:23]} 27. Nxe5 {[%clk 0:00:10]}  fxe5 {[%clk 0:00:22]} 28. Qxe5+ {[%clk 0:00:10]}  Qg7 {[%clk 0:00:22]} 29. Qxc5 {[%clk 0:00:09]}  Nd5 {[%clk 0:00:20]} 30. c4 {[%clk 0:00:08]}  Ne3 {[%clk 0:00:20]} 31. Ng5 {[%clk 0:00:07]}  Rg6 {[%clk 0:00:14]} 32. h4 {[%clk 0:00:06]}  b6 {[%clk 0:00:07]} 33. Qb4 {[%clk 0:00:03]}  a5 {[%clk 0:00:07]} 34. Qd2 {[%clk 0:00:02]}  Nxg2 {[%clk 0:00:07]} 35. Rxg2 {[%clk 0:00:02]}  Bxg2 {[%clk 0:00:08]} 36. Qxg2 {[%clk 0:00:02]}  Rg8 {[%clk 0:00:08]} 0-1


[Site "https://www.chess.com"]

[Event "Titled Tuesday Blitz January 31 Early 2023"]
[White "Bilych, Olexiy"]
[Black "Lorenzo De La Riva, Lazaro"]
[WhiteFideId "14156504"]
[BlackFideId "2268809"]
[WhiteElo "2441"]
[BlackElo "2404"]
[Result "1-0"]
[Round "09"]
[TimeControl "180+2"]
[Date "2023.01.31"]
[WhiteClock "0:01:36"]
[BlackClock "0:01:09"]

1. d4 {[%clk 0:03:00]}  Nf6 {[%clk 0:02:55]} 2. c4 {[%clk 0:03:01]}  e6 {[%clk 0:02:56]} 3. Nf3 {[%clk 0:03:00]}  c5 {[%clk 0:02:56]} 4. d5 {[%clk 0:03:00]}  exd5 {[%clk 0:02:56]} 5. cxd5 {[%clk 0:03:00]}  d6 {[%clk 0:02:57]} 6. Nc3 {[%clk 0:03:01]}  a6 {[%clk 0:02:57]} 7. a4 {[%clk 0:02:58]}  g6 {[%clk 0:02:56]} 8. e4 {[%clk 0:02:53]}  Bg7 {[%clk 0:02:56]} 9. Be2 {[%clk 0:02:52]}  O-O {[%clk 0:02:56]} 10. O-O {[%clk 0:02:53]}  b6 {[%clk 0:02:55]} 11. Qc2 {[%clk 0:02:51]}  Qe7 {[%clk 0:02:44]} 12. Re1 {[%clk 0:02:46]}  Nbd7 {[%clk 0:02:44]} 13. Bf4 {[%clk 0:02:44]}  Nh5 {[%clk 0:02:43]} 14. Bg5 {[%clk 0:02:44]}  Bf6 {[%clk 0:02:42]} 15. Bh6 {[%clk 0:02:42]}  Bg7 {[%clk 0:02:41]} 16. Bxg7 {[%clk 0:02:41]}  Kxg7 {[%clk 0:02:40]} 17. Nd2 {[%clk 0:02:41]}  Nf4 {[%clk 0:02:39]} 18. Bf1 {[%clk 0:02:41]}  Ne5 {[%clk 0:02:36]} 19. g3 {[%clk 0:02:31]}  Nh3+ {[%clk 0:02:35]} 20. Bxh3 {[%clk 0:02:31]}  Bxh3 {[%clk 0:02:34]} 21. f4 {[%clk 0:02:32]}  Nd7 {[%clk 0:02:20]} 22. Nc4 {[%clk 0:02:32]}  Rab8 {[%clk 0:02:09]} 23. e5 {[%clk 0:02:18]}  dxe5 {[%clk 0:02:07]} 24. fxe5 {[%clk 0:02:17]}  Qg5 {[%clk 0:02:05]} 25. Ne4 {[%clk 0:01:53]}  Qh5 {[%clk 0:02:02]} 26. Qc3 {[%clk 0:01:48]}  f6 {[%clk 0:01:22]} 27. exf6+ {[%clk 0:01:44]}  Nxf6 {[%clk 0:01:20]} 28. Nxf6 {[%clk 0:01:43]}  Rxf6 {[%clk 0:01:15]} 29. Re7+ {[%clk 0:01:43]}  Kh6 {[%clk 0:01:13]} 30. Qxf6 {[%clk 0:01:42]}  b5 {[%clk 0:01:12]} 31. Qg7+ {[%clk 0:01:41]}  Kg5 {[%clk 0:01:11]} 32. Re5+ {[%clk 0:01:41]}  Bf5 {[%clk 0:01:10]} 33. Qe7+ {[%clk 0:01:39]}  Kh6 {[%clk 0:01:09]} 34. Ne3 {[%clk 0:01:36]} 1-0


[Site "https://www.chess.com"]

[Event "Titled Tuesday Blitz January 31 Early 2023"]
[White "Skuhala, Barbara"]
[Black "Kosteniuk, Alexandra"]
[WhiteFideId "14605465"]
[BlackFideId "4128125"]
[WhiteElo "2153"]
[BlackElo "2535"]
[Result "0-1"]
[Round "09"]
[TimeControl "180+2"]
[Date "2023.01.31"]
[WhiteClock "0:00:45"]
[BlackClock "0:01:02"]

1. e4 {[%clk 0:03:00]}  c6 {[%clk 0:02:58]} 2. d4 {[%clk 0:03:00]}  d5 {[%clk 0:02:59]} 3. f3 {[%clk 0:02:59]}  e6 {[%clk 0:02:57]} 4. Nc3 {[%clk 0:02:57]}  Bb4 {[%clk 0:02:54]} 5. a3 {[%clk 0:02:57]}  Bxc3+ {[%clk 0:02:52]} 6. bxc3 {[%clk 0:02:56]}  Nf6 {[%clk 0:02:51]} 7. e5 {[%clk 0:02:40]}  Nfd7 {[%clk 0:02:51]} 8. f4 {[%clk 0:02:40]}  c5 {[%clk 0:02:49]} 9. dxc5 {[%clk 0:02:37]}  Qa5 {[%clk 0:02:47]} 10. Bd2 {[%clk 0:02:34]}  Qxc5 {[%clk 0:02:46]} 11. Nf3 {[%clk 0:02:34]}  Nc6 {[%clk 0:02:45]} 12. Bd3 {[%clk 0:02:31]}  g6 {[%clk 0:02:38]} 13. Qe2 {[%clk 0:02:30]}  Ne7 {[%clk 0:02:22]} 14. c4 {[%clk 0:02:17]}  dxc4 {[%clk 0:02:19]} 15. Bxc4 {[%clk 0:02:17]}  Nb6 {[%clk 0:01:45]} 16. Bd3 {[%clk 0:02:16]}  O-O {[%clk 0:01:39]} 17. h4 {[%clk 0:02:05]}  Nbd5 {[%clk 0:01:36]} 18. Rb1 {[%clk 0:01:56]}  Nc3 {[%clk 0:01:33]} 19. Bxc3 {[%clk 0:01:52]}  Qxc3+ {[%clk 0:01:33]} 20. Kf2 {[%clk 0:01:50]}  Nd5 {[%clk 0:01:29]} 21. g3 {[%clk 0:01:05]}  Qc5+ {[%clk 0:01:21]} 22. Kg2 {[%clk 0:01:03]}  Nc3 {[%clk 0:01:21]} 23. Qe1 {[%clk 0:00:59]}  Nxb1 {[%clk 0:01:20]} 24. Qxb1 {[%clk 0:00:59]}  Bd7 {[%clk 0:01:19]} 25. Be4 {[%clk 0:00:52]}  Bc6 {[%clk 0:01:15]} 26. Bxc6 {[%clk 0:00:51]}  Qxc6 {[%clk 0:01:16]} 27. h5 {[%clk 0:00:51]}  Rac8 {[%clk 0:01:13]} 28. c4 {[%clk 0:00:47]}  Rfd8 {[%clk 0:01:04]} 29. hxg6 {[%clk 0:00:45]}  Rd2+ {[%clk 0:01:02]} 0-1


[Site "https://www.chess.com"]

[Event "Titled Tuesday Blitz January 31 Early 2023"]
[White "Fiorito, Joaquin"]
[Black "Yuan, Qingyu"]
[WhiteFideId "180173"]
[BlackFideId "8609772"]
[WhiteElo "2405"]
[BlackElo "2373"]
[Result "0-1"]
[Round "09"]
[TimeControl "180+2"]
[Date "2023.01.31"]
[WhiteClock "0:00:13"]
[BlackClock "0:00:08"]

1. d4 {[%clk 0:03:00]}  d5 {[%clk 0:02:57]} 2. Nc3 {[%clk 0:02:59]}  Nf6 {[%clk 0:02:57]} 3. Bf4 {[%clk 0:02:59]}  c5 {[%clk 0:02:56]} 4. e4 {[%clk 0:02:58]}  Nxe4 {[%clk 0:02:49]} 5. Bb5+ {[%clk 0:02:57]}  Nc6 {[%clk 0:02:37]} 6. Nxe4 {[%clk 0:02:57]}  dxe4 {[%clk 0:02:33]} 7. Ne2 {[%clk 0:02:58]}  e6 {[%clk 0:02:17]} 8. Bxc6+ {[%clk 0:02:49]}  bxc6 {[%clk 0:02:17]} 9. dxc5 {[%clk 0:02:50]}  Qxd1+ {[%clk 0:01:46]} 10. Rxd1 {[%clk 0:02:49]}  Bxc5 {[%clk 0:01:47]} 11. Bd6 {[%clk 0:02:42]}  Bb6 {[%clk 0:01:42]} 12. O-O {[%clk 0:02:38]}  Ba6 {[%clk 0:01:36]} 13. Rfe1 {[%clk 0:02:37]}  Bxe2 {[%clk 0:01:34]} 14. Rxe2 {[%clk 0:02:37]}  O-O-O {[%clk 0:01:27]} 15. Ree1 {[%clk 0:02:10]}  Rd7 {[%clk 0:01:02]} 16. Be5 {[%clk 0:01:37]}  Rhd8 {[%clk 0:01:01]} 17. Rxd7 {[%clk 0:01:33]}  Rxd7 {[%clk 0:01:02]} 18. Bc3 {[%clk 0:01:31]}  f5 {[%clk 0:00:58]} 19. Kf1 {[%clk 0:01:31]}  g5 {[%clk 0:00:57]} 20. f3 {[%clk 0:01:30]}  e3 {[%clk 0:00:54]} 21. Ke2 {[%clk 0:01:29]}  f4 {[%clk 0:00:53]} 22. h4 {[%clk 0:01:28]}  gxh4 {[%clk 0:00:49]} 23. Rh1 {[%clk 0:01:27]}  Bd8 {[%clk 0:00:49]} 24. Rd1 {[%clk 0:01:11]}  Rd5 {[%clk 0:00:43]} 25. Rd4 {[%clk 0:01:07]}  Rxd4 {[%clk 0:00:28]} 26. Bxd4 {[%clk 0:01:07]}  a6 {[%clk 0:00:28]} 27. Be5 {[%clk 0:01:07]}  Bg5 {[%clk 0:00:28]} 28. c4 {[%clk 0:01:03]}  Kd7 {[%clk 0:00:22]} 29. b4 {[%clk 0:01:00]}  Kc8 {[%clk 0:00:18]} 30. a4 {[%clk 0:00:59]}  Kb7 {[%clk 0:00:19]} 31. a5 {[%clk 0:00:55]}  Be7 {[%clk 0:00:13]} 32. c5 {[%clk 0:00:55]}  Bg5 {[%clk 0:00:12]} 33. Kd3 {[%clk 0:00:55]}  Kc8 {[%clk 0:00:13]} 34. Ke2 {[%clk 0:00:54]}  Kd7 {[%clk 0:00:13]} 35. Bd6 {[%clk 0:00:50]}  Bf6 {[%clk 0:00:09]} 36. Bxf4 {[%clk 0:00:48]}  Bc3 {[%clk 0:00:09]} 37. Bxe3 {[%clk 0:00:47]}  Bxb4 {[%clk 0:00:09]} 38. Bf2 {[%clk 0:00:44]}  h3 {[%clk 0:00:07]} 39. gxh3 {[%clk 0:00:44]}  Bxa5 {[%clk 0:00:07]} 40. Kd3 {[%clk 0:00:45]}  Bc7 {[%clk 0:00:06]} 41. Ke4 {[%clk 0:00:43]}  Ke7 {[%clk 0:00:06]} 42. Bh4+ {[%clk 0:00:43]}  Kf7 {[%clk 0:00:06]} 43. Bg5 {[%clk 0:00:41]}  Kg6 {[%clk 0:00:06]} 44. Be7 {[%clk 0:00:42]}  a5 {[%clk 0:00:05]} 45. Bd6 {[%clk 0:00:41]}  Bd8 {[%clk 0:00:04]} 46. Ke5 {[%clk 0:00:37]}  Bf6+ {[%clk 0:00:02]} 47. Kxe6 {[%clk 0:00:07]}  a4 {[%clk 0:00:03]} 48. Kd7 {[%clk 0:00:07]}  a3 {[%clk 0:00:03]} 49. Kxc6 {[%clk 0:00:08]}  a2 {[%clk 0:00:04]} 50. Kd7 {[%clk 0:00:08]}  a1=Q {[%clk 0:00:04]} 51. c6 {[%clk 0:00:09]}  Qa4 {[%clk 0:00:04]} 52. Kc7 {[%clk 0:00:09]}  Qb3 {[%clk 0:00:03]} 53. Kd7 {[%clk 0:00:08]}  Qb5 {[%clk 0:00:04]} 54. Kc7 {[%clk 0:00:08]}  Qa5+ {[%clk 0:00:04]} 55. Kd7 {[%clk 0:00:08]}  Qd8+ {[%clk 0:00:05]} 56. Ke6 {[%clk 0:00:09]}  Qc8+ {[%clk 0:00:05]} 57. Kd5 {[%clk 0:00:09]}  Qxh3 {[%clk 0:00:05]} 58. f4 {[%clk 0:00:09]}  Qc8 {[%clk 0:00:05]} 59. Kc5 {[%clk 0:00:10]}  Kf5 {[%clk 0:00:06]} 60. Kd5 {[%clk 0:00:11]}  h5 {[%clk 0:00:06]} 61. c7 {[%clk 0:00:10]}  h4 {[%clk 0:00:06]} 62. Kc4 {[%clk 0:00:11]}  h3 {[%clk 0:00:07]} 63. Kd3 {[%clk 0:00:12]}  h2 {[%clk 0:00:07]} 64. Ke3 {[%clk 0:00:13]}  h1=Q {[%clk 0:00:08]} 0-1


[Site "https://www.chess.com"]

[Event "Titled Tuesday Blitz January 31 Early 2023"]
[White "Lymar, Vladislav"]
[Black "Wong, Yinn Long"]
[WhiteFideId "14162180"]
[BlackFideId "5707684"]
[WhiteElo "2119"]
[BlackElo "2371"]
[Result "0-1"]
[Round "09"]
[TimeControl "180+2"]
[Date "2023.01.31"]
[WhiteClock "0:00:07"]
[BlackClock "0:00:20"]

1. e4 {[%clk 0:02:52]}  c5 {[%clk 0:03:00]} 2. Nf3 {[%clk 0:02:52]}  g6 {[%clk 0:03:00]} 3. g3 {[%clk 0:02:52]}  Bg7 {[%clk 0:03:00]} 4. Bg2 {[%clk 0:02:52]}  Nc6 {[%clk 0:03:01]} 5. O-O {[%clk 0:02:53]}  Nf6 {[%clk 0:03:01]} 6. Nc3 {[%clk 0:02:53]}  O-O {[%clk 0:03:02]} 7. d3 {[%clk 0:02:53]}  d5 {[%clk 0:03:01]} 8. e5 {[%clk 0:02:52]}  Nd7 {[%clk 0:02:51]} 9. Nxd5 {[%clk 0:02:45]}  e6 {[%clk 0:02:51]} 10. Nc3 {[%clk 0:02:38]}  Ndxe5 {[%clk 0:02:51]} 11. Nxe5 {[%clk 0:02:37]}  Nxe5 {[%clk 0:02:51]} 12. Ne4 {[%clk 0:02:37]}  Qe7 {[%clk 0:02:38]} 13. Bg5 {[%clk 0:02:35]}  Qc7 {[%clk 0:02:32]} 14. Bf6 {[%clk 0:02:30]}  Bd7 {[%clk 0:02:24]} 15. Qd2 {[%clk 0:02:28]}  Bxf6 {[%clk 0:02:21]} 16. Nxf6+ {[%clk 0:02:26]}  Kg7 {[%clk 0:02:21]} 17. Qg5 {[%clk 0:02:03]}  h6 {[%clk 0:02:07]} 18. Qf4 {[%clk 0:01:57]}  g5 {[%clk 0:01:40]} 19. Nh5+ {[%clk 0:01:57]}  Kg6 {[%clk 0:01:07]} 20. Qf6+ {[%clk 0:01:57]}  Kxh5 {[%clk 0:01:08]} 21. f4 {[%clk 0:01:57]}  Ng4 {[%clk 0:01:01]} 22. Bf3 {[%clk 0:01:56]}  e5 {[%clk 0:00:54]} 23. h3 {[%clk 0:01:15]}  Qb6 {[%clk 0:00:54]} 24. hxg4+ {[%clk 0:01:12]}  Bxg4 {[%clk 0:00:54]} 25. Bxg4+ {[%clk 0:01:11]}  Kxg4 {[%clk 0:00:54]} 26. Qxe5 {[%clk 0:01:12]}  Rae8 {[%clk 0:00:51]} 27. Qd5 {[%clk 0:01:08]}  Qc6 {[%clk 0:00:49]} 28. Qxc6 {[%clk 0:00:41]}  bxc6 {[%clk 0:00:50]} 29. Rae1 {[%clk 0:00:41]}  Kxg3 {[%clk 0:00:44]} 30. Rxe8 {[%clk 0:00:36]}  Rxe8 {[%clk 0:00:44]} 31. fxg5 {[%clk 0:00:36]}  hxg5 {[%clk 0:00:45]} 32. a4 {[%clk 0:00:21]}  f5 {[%clk 0:00:35]} 33. Rd1 {[%clk 0:00:16]}  Re2 {[%clk 0:00:31]} 34. d4 {[%clk 0:00:14]}  Rxc2 {[%clk 0:00:28]} 35. Rd3+ {[%clk 0:00:12]}  Kg4 {[%clk 0:00:27]} 36. d5 {[%clk 0:00:10]}  cxd5 {[%clk 0:00:26]} 37. Rxd5 {[%clk 0:00:11]}  Rxb2 {[%clk 0:00:26]} 38. Rxc5 {[%clk 0:00:12]}  Rb7 {[%clk 0:00:18]} 39. Kf2 {[%clk 0:00:11]}  f4 {[%clk 0:00:18]} 40. Rc2 {[%clk 0:00:08]}  Rh7 {[%clk 0:00:19]} 41. Kg2 {[%clk 0:00:07]}  f3+ {[%clk 0:00:18]} 42. Kg1 {[%clk 0:00:07]}  Kg3 {[%clk 0:00:19]} 43. a5 {[%clk 0:00:07]}  f2+ {[%clk 0:00:16]} 44. Rxf2 {[%clk 0:00:06]}  Rh1+ {[%clk 0:00:17]} 45. Kxh1 {[%clk 0:00:07]}  Kxf2 {[%clk 0:00:18]} 46. Kh2 {[%clk 0:00:04]}  g4 {[%clk 0:00:18]} 47. Kh1 {[%clk 0:00:05]}  g3 {[%clk 0:00:18]} 48. a6 {[%clk 0:00:05]}  g2+ {[%clk 0:00:19]} 49. Kh2 {[%clk 0:00:06]}  g1=Q+ {[%clk 0:00:20]} 50. Kh3 {[%clk 0:00:07]}  Qg3# {[%clk 0:00:20]} 0-1


[Site "https://www.chess.com"]

[Event "Titled Tuesday Blitz January 31 Early 2023"]
[White "Ristic, Nebojsa B"]
[Black "Costachi, Mihnea"]
[WhiteFideId "935468"]
[BlackFideId "1217518"]
[WhiteElo "2236"]
[BlackElo "2476"]
[Result "0-1"]
[Round "09"]
[TimeControl "180+2"]
[Date "2023.01.31"]
[WhiteClock "0:00:01"]
[BlackClock "0:01:18"]

1. d4 {[%clk 0:03:00]}  e6 {[%clk 0:02:58]} 2. Bf4 {[%clk 0:03:00]}  c5 {[%clk 0:02:57]} 3. e3 {[%clk 0:03:00]}  Qb6 {[%clk 0:02:56]} 4. Nc3 {[%clk 0:02:55]}  Nf6 {[%clk 0:02:54]} 5. Rb1 {[%clk 0:02:46]}  Nc6 {[%clk 0:02:54]} 6. Nf3 {[%clk 0:02:45]}  cxd4 {[%clk 0:02:51]} 7. exd4 {[%clk 0:02:43]}  Bb4 {[%clk 0:02:52]} 8. Bc4 {[%clk 0:02:38]}  O-O {[%clk 0:02:45]} 9. O-O {[%clk 0:02:36]}  d5 {[%clk 0:02:41]} 10. Bd3 {[%clk 0:02:34]}  Bd7 {[%clk 0:02:36]} 11. Ne2 {[%clk 0:02:32]}  Ne7 {[%clk 0:02:34]} 12. Ng3 {[%clk 0:02:28]}  Ng6 {[%clk 0:02:32]} 13. Bg5 {[%clk 0:02:22]}  Be7 {[%clk 0:02:29]} 14. Ne5 {[%clk 0:02:18]}  Bb5 {[%clk 0:02:28]} 15. Bxb5 {[%clk 0:02:09]}  Qxb5 {[%clk 0:02:28]} 16. c3 {[%clk 0:01:53]}  Rfe8 {[%clk 0:02:15]} 17. Re1 {[%clk 0:01:52]}  Nxe5 {[%clk 0:02:15]} 18. dxe5 {[%clk 0:01:45]}  Nd7 {[%clk 0:02:15]} 19. Bxe7 {[%clk 0:01:43]}  Rxe7 {[%clk 0:02:16]} 20. Qg4 {[%clk 0:01:30]}  f5 {[%clk 0:02:05]} 21. exf6 {[%clk 0:01:14]}  Nxf6 {[%clk 0:02:05]} 22. Qd4 {[%clk 0:01:09]}  Rae8 {[%clk 0:02:00]} 23. f4 {[%clk 0:01:03]}  Qb6 {[%clk 0:01:53]} 24. Rbd1 {[%clk 0:01:01]}  Qxd4+ {[%clk 0:01:52]} 25. Rxd4 {[%clk 0:01:02]}  Nd7 {[%clk 0:01:53]} 26. Rd2 {[%clk 0:00:56]}  Nc5 {[%clk 0:01:47]} 27. f5 {[%clk 0:00:44]}  exf5 {[%clk 0:01:37]} 28. Rxe7 {[%clk 0:00:45]}  Rxe7 {[%clk 0:01:38]} 29. Rxd5 {[%clk 0:00:38]}  Na4 {[%clk 0:01:36]} 30. Nxf5 {[%clk 0:00:36]}  Re2 {[%clk 0:01:36]} 31. Rd8+ {[%clk 0:00:26]}  Kf7 {[%clk 0:01:35]} 32. b3 {[%clk 0:00:14]}  Nxc3 {[%clk 0:01:33]} 33. Nd4 {[%clk 0:00:13]}  Rd2 {[%clk 0:01:28]} 34. Rd7+ {[%clk 0:00:10]}  Ke8 {[%clk 0:01:27]} 35. Rc7 {[%clk 0:00:09]}  Ne4 {[%clk 0:01:19]} 36. Rc8+ {[%clk 0:00:01]}  Kd7 {[%clk 0:01:18]} 0-1


[Site "https://www.chess.com"]

[Event "Titled Tuesday Blitz January 31 Early 2023"]
[White "Manon-og, Ramon Jr."]
[Black "Kosakowski, Jakub"]
[WhiteFideId "5200776"]
[BlackFideId "1185080"]
[WhiteElo "1999"]
[BlackElo "2485"]
[Result "0-1"]
[Round "09"]
[TimeControl "180+2"]
[Date "2023.01.31"]
[WhiteClock "0:00:03"]
[BlackClock "0:00:37"]

1. e4 {[%clk 0:02:57]}  c5 {[%clk 0:02:54]} 2. Nf3 {[%clk 0:02:54]}  d6 {[%clk 0:02:53]} 3. Bb5+ {[%clk 0:02:50]}  Bd7 {[%clk 0:02:53]} 4. Bxd7+ {[%clk 0:02:45]}  Nxd7 {[%clk 0:02:53]} 5. c4 {[%clk 0:02:45]}  Ngf6 {[%clk 0:02:52]} 6. Nc3 {[%clk 0:02:44]}  e6 {[%clk 0:02:52]} 7. O-O {[%clk 0:02:42]}  Be7 {[%clk 0:02:52]} 8. d4 {[%clk 0:02:40]}  cxd4 {[%clk 0:02:52]} 9. Qxd4 {[%clk 0:02:40]}  O-O {[%clk 0:02:51]} 10. b3 {[%clk 0:02:40]}  Qa5 {[%clk 0:02:49]} 11. Bb2 {[%clk 0:02:40]}  Rfc8 {[%clk 0:02:48]} 12. h3 {[%clk 0:02:36]}  a6 {[%clk 0:02:48]} 13. a4 {[%clk 0:02:36]}  Nc5 {[%clk 0:02:44]} 14. Nd2 {[%clk 0:02:29]}  Nh5 {[%clk 0:02:15]} 15. g3 {[%clk 0:02:04]}  Nf6 {[%clk 0:01:56]} 16. Na2 {[%clk 0:01:49]}  Qb6 {[%clk 0:01:45]} 17. a5 {[%clk 0:01:43]}  Qc6 {[%clk 0:01:42]} 18. Nb4 {[%clk 0:01:32]}  Qc7 {[%clk 0:01:36]} 19. Nd3 {[%clk 0:01:26]}  Nxd3 {[%clk 0:01:33]} 20. Qxd3 {[%clk 0:01:27]}  Nd7 {[%clk 0:01:32]} 21. Nf3 {[%clk 0:01:24]}  Nc5 {[%clk 0:01:31]} 22. Qc2 {[%clk 0:01:24]}  Qc6 {[%clk 0:01:21]} 23. Rfe1 {[%clk 0:01:23]}  b5 {[%clk 0:01:19]} 24. h4 {[%clk 0:01:16]}  bxc4 {[%clk 0:01:17]} 25. Qxc4 {[%clk 0:01:17]}  Qb7 {[%clk 0:01:16]} 26. Re3 {[%clk 0:01:15]}  Rab8 {[%clk 0:01:14]} 27. Nd2 {[%clk 0:00:58]}  Qa8 {[%clk 0:01:01]} 28. h5 {[%clk 0:00:58]}  Nxb3 {[%clk 0:00:56]} 29. Qxb3 {[%clk 0:00:38]}  Rxb3 {[%clk 0:00:55]} 30. Rxb3 {[%clk 0:00:39]}  h6 {[%clk 0:00:53]} 31. Rb1 {[%clk 0:00:31]}  Qc6 {[%clk 0:00:49]} 32. Rc1 {[%clk 0:00:27]}  Qd7 {[%clk 0:00:48]} 33. Rb1 {[%clk 0:00:25]}  d5 {[%clk 0:00:47]} 34. Rb6 {[%clk 0:00:24]}  dxe4 {[%clk 0:00:45]} 35. Nxe4 {[%clk 0:00:25]}  Qd3 {[%clk 0:00:45]} 36. Re1 {[%clk 0:00:24]}  Rc4 {[%clk 0:00:40]} 37. Rb8+ {[%clk 0:00:18]}  Kh7 {[%clk 0:00:40]} 38. Re3 {[%clk 0:00:10]}  Qd1+ {[%clk 0:00:38]} 39. Kg2 {[%clk 0:00:10]}  Qd5 {[%clk 0:00:38]} 40. f3 {[%clk 0:00:08]}  Rc2+ {[%clk 0:00:38]} 41. Nf2 {[%clk 0:00:08]}  Bc5 {[%clk 0:00:37]} 42. Bd4 {[%clk 0:00:03]}  Qxd4 {[%clk 0:00:36]} 43. Rbb3 {[%clk 0:00:02]}  Qxe3 {[%clk 0:00:36]} 44. Rxe3 {[%clk 0:00:02]}  Bxe3 {[%clk 0:00:37]} 45. g4 {[%clk 0:00:03]}  Bxf2 {[%clk 0:00:37]} 0-1


[Site "https://www.chess.com"]

[Event "Titled Tuesday Blitz January 31 Early 2023"]
[White "Kochetov, Andrey"]
[Black "Koellner, Ruben Gideon"]
[WhiteFideId "24130532"]
[BlackFideId "12993093"]
[WhiteElo "2165"]
[BlackElo "2426"]
[Result "1-0"]
[Round "09"]
[TimeControl "180+2"]
[Date "2023.01.31"]
[WhiteClock "0:00:04"]
[BlackClock "0:00:01"]

1. e4 {[%clk 0:02:54]}  d6 {[%clk 0:02:58]} 2. d4 {[%clk 0:02:54]}  Nf6 {[%clk 0:02:30]} 3. Bd3 {[%clk 0:02:54]}  e5 {[%clk 0:02:27]} 4. c3 {[%clk 0:02:50]}  Nbd7 {[%clk 0:02:27]} 5. f4 {[%clk 0:02:50]}  d5 {[%clk 0:02:25]} 6. fxe5 {[%clk 0:02:26]}  Nxe4 {[%clk 0:02:24]} 7. Nf3 {[%clk 0:02:18]}  Be7 {[%clk 0:02:20]} 8. O-O {[%clk 0:02:12]}  O-O {[%clk 0:02:19]} 9. Nbd2 {[%clk 0:02:08]}  f5 {[%clk 0:02:18]} 10. exf6 {[%clk 0:02:06]}  Ndxf6 {[%clk 0:02:18]} 11. Ne5 {[%clk 0:02:03]}  Bd6 {[%clk 0:02:13]} 12. Ndf3 {[%clk 0:02:03]}  c6 {[%clk 0:02:12]} 13. Be3 {[%clk 0:01:30]}  Ng4 {[%clk 0:02:03]} 14. Nxg4 {[%clk 0:00:48]}  Bxg4 {[%clk 0:02:04]} 15. Bxe4 {[%clk 0:00:47]}  dxe4 {[%clk 0:01:58]} 16. Qb3+ {[%clk 0:00:47]}  Kh8 {[%clk 0:01:55]} 17. Ng5 {[%clk 0:00:46]}  h6 {[%clk 0:01:06]} 18. Nf7+ {[%clk 0:00:38]}  Rxf7 {[%clk 0:01:04]} 19. Rxf7 {[%clk 0:00:32]}  Qh4 {[%clk 0:01:03]} 20. Bf4 {[%clk 0:00:31]}  Bxf4 {[%clk 0:00:45]} 21. Rxf4 {[%clk 0:00:25]}  Qg5 {[%clk 0:00:46]} 22. Qxb7 {[%clk 0:00:08]}  Qxf4 {[%clk 0:00:23]} 23. Qxa8+ {[%clk 0:00:07]}  Kh7 {[%clk 0:00:23]} 24. Qxc6 {[%clk 0:00:04]}  Qe3+ {[%clk 0:00:13]} 25. Kh1 {[%clk 0:00:04]}  Qf4 {[%clk 0:00:13]} 26. Re1 {[%clk 0:00:03]}  e3 {[%clk 0:00:12]} 27. Qc4 {[%clk 0:00:03]}  Qf2 {[%clk 0:00:11]} 28. Qf1 {[%clk 0:00:02]}  Qd2 {[%clk 0:00:06]} 29. h3 {[%clk 0:00:02]}  Bh5 {[%clk 0:00:06]} 30. Qg1 {[%clk 0:00:02]}  e2 {[%clk 0:00:05]} 31. Qf2 {[%clk 0:00:02]}  Qxb2 {[%clk 0:00:05]} 32. d5 {[%clk 0:00:02]}  Qd2 {[%clk 0:00:04]} 33. g4 {[%clk 0:00:02]}  Bg6 {[%clk 0:00:03]} 34. Qxe2 {[%clk 0:00:02]}  Qxd5+ {[%clk 0:00:04]} 35. Kh2 {[%clk 0:00:03]}  Qc5 {[%clk 0:00:03]} 36. Qe3 {[%clk 0:00:03]}  Qc4 {[%clk 0:00:03]} 37. h4 {[%clk 0:00:03]}  Qxa2+ {[%clk 0:00:03]} 38. Re2 {[%clk 0:00:03]}  Qc4 {[%clk 0:00:02]} 39. h5 {[%clk 0:00:04]}  Bd3 {[%clk 0:00:02]} 40. Rd2 {[%clk 0:00:04]}  Be4 {[%clk 0:00:01]} 41. Rd4 {[%clk 0:00:04]}  Qa2+ {[%clk 0:00:01]} 42. Qd2 {[%clk 0:00:03]}  Qe6 {[%clk 0:00:01]} 43. Qf4 {[%clk 0:00:03]}  Bc2 {[%clk 0:00:01]} 44. Rd2 {[%clk 0:00:04]} 1-0


[Site "https://www.chess.com"]